fUSD/lending_fUSD_20260506
["ID","MTS","AMOUNT","RATE_DAILY","PERIOD"]
[421713468,1778052737000,-1326.72763238,0.00021616,2]
[421713445,1778052737000,-2000.0,0.00021093,2]
[421713447,1778052737000,-2000.0,0.00021093,2]
[421713456,1778052737000,-1000.0,0.00021248,2]
[421713455,1778052737000,-408.20814367,0.00021248,2]
[421713452,1778052737000,-2094.0,0.00021093,2]
[421713450,1778052737000,-2000.0,0.00021093,2]
[421713449,1778052737000,-2000.0,0.00021093,2]
[421713446,1778052737000,-2000.0,0.00021093,2]
[421713454,1778052737000,-1000.0,0.00021248,2]
[421713453,1778052737000,-1004.22534813,0.00021248,2]
[421713469,1778052737000,-450.0,0.00021616,2]
[421713451,1778052737000,-2000.0,0.00021093,2]
[421713460,1778052737000,-1000.0,0.00021248,2]
[421713458,1778052737000,-253.55632653,0.00021248,2]
[421713461,1778052737000,-1000.0,0.00021248,2]
[421713462,1778052737000,-1000.0,0.00021248,2]
[421713459,1778052737000,-1000.0,0.00021248,2]
[421713463,1778052737000,-3017.82,0.00021273,2]
[421713464,1778052737000,-157.34,0.00021289,2]
[421713466,1778052737000,-296.59,0.0002152,2]
[421713465,1778052737000,-58241.82039864,0.000215,2]
[421713467,1778052737000,-632.20967093,0.00021533,2]
[421713457,1778052737000,-1000.0,0.00021248,2]
[421713504,1778052737000,-170.38375028,0.00022407,2]
[421713536,1778052737000,-199.36,0.00022603,2]
[421713495,1778052737000,-2000.0,0.00022344,2]
[421713523,1778052737000,-2000.0,0.00022474,2]
[421713522,1778052737000,-2000.0,0.00022474,2]
[421713524,1778052737000,-2000.0,0.00022474,2]
[421713529,1778052737000,-2000.0,0.00022474,2]
[421713531,1778052737000,-2900.0,0.000225,15]
[421713530,1778052737000,-1669.08026706,0.00022499,2]
[421713528,1778052737000,-2000.0,0.00022474,2]
[421713532,1778052737000,-35948.84403507,0.000225,2]
[421713535,1778052737000,-500.0,0.00022533,2]
[421713534,1778052737000,-500.0,0.00022533,2]
[421713526,1778052737000,-2000.0,0.00022474,2]
[421713533,1778052737000,-500.0,0.00022533,2]
[421713539,1778052737000,-650.0,0.00022712,2]
[421713540,1778052737000,-2000.0,0.00022716,2]
[421713541,1778052737000,-2000.0,0.00022716,2]
[421713543,1778052737000,-2000.0,0.00022716,2]
[421713542,1778052737000,-2000.0,0.00022716,2]
[421713544,1778052737000,-2000.0,0.00022716,2]
[421713545,1778052737000,-2000.0,0.00022716,2]
[421713546,1778052737000,-2000.0,0.00022716,2]
[421713547,1778052737000,-2000.0,0.00022716,2]
[421713496,1778052737000,-1994.5307258,0.00022344,2]
[421713537,1778052737000,-3573.0,0.00022671,2]
[421713525,1778052737000,-2000.0,0.00022474,2]
[421713538,1778052737000,-150.0,0.000227,14]
[421713521,1778052737000,-2000.0,0.00022474,2]
[421713497,1778052737000,-2000.0,0.00022344,2]
[421713520,1778052737000,-2000.0,0.00022474,2]
[421713501,1778052737000,-1118.34160976,0.00022375,2]
[421713502,1778052737000,-170.3837503,0.00022407,2]
[421713503,1778052737000,-170.38375028,0.00022407,2]
[421713498,1778052737000,-2000.0,0.00022344,2]
[421713499,1778052737000,-2004.32156241,0.00022344,2]
[421713507,1778052737000,-1412.32,0.00022466,2]
[421713506,1778052737000,-600.0,0.00022446,7]
[421713505,1778052737000,-1650.0,0.00022446,2]
[421713511,1778052737000,-2000.0,0.00022474,2]
[421713513,1778052737000,-2000.0,0.00022474,2]
[421713500,1778052737000,-2842.0,0.00022353,2]
[421713515,1778052737000,-2000.0,0.00022474,2]
[421713517,1778052737000,-2000.0,0.00022474,2]
[421713518,1778052737000,-2000.0,0.00022474,2]
[421713519,1778052737000,-2000.0,0.00022474,2]
[421713516,1778052737000,-2000.0,0.00022474,2]
[421713510,1778052737000,-2000.0,0.00022474,2]
[421713527,1778052737000,-2000.0,0.00022474,2]
[421713512,1778052737000,-2000.0,0.00022474,2]
[421713514,1778052737000,-2000.0,0.00022474,2]
[421713509,1778052737000,-157.34,0.00022471,2]
[421713508,1778052737000,-791.69,0.00022466,2]
[421713586,1778052738000,-3000.0,0.0002344,2]
[421713576,1778052738000,-480.0,0.00023,2]
[421713578,1778052738000,-162.0,0.00023,2]
[421713577,1778052738000,-195.0,0.00023,2]
[421713579,1778052738000,-1443.0,0.00023,2]
[421713580,1778052738000,-163.16558903,0.00023162,2]
[421713582,1778052738000,-500.0,0.00023162,2]
[421713581,1778052738000,-500.0,0.00023162,2]
[421713585,1778052738000,-150.0,0.00023317,2]
[421713583,1778052738000,-750.0,0.0002326,2]
[421713584,1778052738000,-1000.0,0.00023288,15]
[421713588,1778052738000,-1000.0,0.00023529,2]
[421713591,1778052738000,-1000.0,0.00023529,2]
[421713589,1778052738000,-1000.0,0.00023529,2]
[421713590,1778052738000,-1000.0,0.00023529,2]
[421713602,1778052738000,-250.0,0.00023865,2]
[421713592,1778052738000,-1000.0,0.00023529,2]
[421713597,1778052738000,-157.34,0.00023654,2]
[421713598,1778052738000,-1000.0,0.00023709,2]
[421713600,1778052738000,-25142.47854187,0.000238,2]
[421713594,1778052738000,-572.29524067,0.00023529,2]
[421713593,1778052738000,-1000.0,0.00023529,2]
[421713596,1778052738000,-200.0,0.00023649,2]
[421713575,1778052738000,-360.0,0.00023,2]
[421713587,1778052738000,-401.18521548,0.000235,2]
[421713574,1778052738000,-1176.0,0.00023,2]
[421713548,1778052738000,-2000.0,0.00022716,2]
[421713571,1778052738000,-177.0,0.00023,2]
[421713601,1778052738000,-165.96198961,0.00023808,2]
[421713549,1778052738000,-2000.0,0.00022716,2]
[421713550,1778052738000,-2000.0,0.00022716,2]
[421713552,1778052738000,-2000.0,0.00022716,2]
[421713553,1778052738000,-2000.0,0.00022716,2]
[421713551,1778052738000,-2000.0,0.00022716,2]
[421713554,1778052738000,-2000.0,0.00022716,2]
[421713555,1778052738000,-2000.0,0.00022716,2]
[421713557,1778052738000,-1245.0,0.00022716,2]
[421713559,1778052738000,-1296.40463895,0.00022892,2]
[421713558,1778052738000,-473.75913536,0.00022892,2]
[421713573,1778052738000,-494.0,0.00023,2]
[421713556,1778052738000,-2000.0,0.00022716,2]
[421713562,1778052738000,-500.0,0.00022981,2]
[421713565,1778052738000,-500.0,0.00022981,2]
[421713564,1778052738000,-500.0,0.00022981,2]
[421713561,1778052738000,-501.05799506,0.00022981,2]
[421713566,1778052738000,-500.0,0.00022981,2]
[421713568,1778052738000,-500.0,0.00022981,2]
[421713567,1778052738000,-500.0,0.00022981,2]
[421713563,1778052738000,-500.0,0.00022981,2]
[421713570,1778052738000,-497.0,0.00023,2]
[421713569,1778052738000,-500.0,0.00022981,2]
[421713572,1778052738000,-385.0,0.00023,2]
[421713560,1778052738000,-2500.0,0.00022892,2]
[421713599,1778052738000,-671.63544967,0.00023709,2]
[421713634,1778052738000,-350.0,0.00024413,2]
[421713603,1778052738000,-2565.54992568,0.00023988,2]
[421713632,1778052738000,-2561.04188188,0.00024269,2]
[421713635,1778052738000,-200.0,0.000245,2]
[421713636,1778052738000,-296.59,0.0002454,2]
[421713633,1778052738000,-2842.0,0.00024324,2]
[421713631,1778052738000,-1500.0,0.00024257,2]
[421713656,1778052738000,-1000.0,0.00024658,25]
[421713639,1778052738000,-1461.74205325,0.00024625,2]
[421713649,1778052738000,-500.0,0.00024657,2]
[421713638,1778052738000,-2000.0,0.00024625,2]
[421713642,1778052738000,-500.0,0.00024657,2]
[421713640,1778052738000,-2000.0,0.00024625,2]
[421713637,1778052738000,-2017.16375829,0.00024625,2]
[421713641,1778052738000,-2000.0,0.00024625,2]
[421713646,1778052738000,-500.0,0.00024657,2]
[421713645,1778052738000,-500.0,0.00024657,2]
[421713648,1778052738000,-500.0,0.00024657,2]
[421713643,1778052738000,-500.0,0.00024657,2]
[421713647,1778052738000,-500.0,0.00024657,2]
[421713650,1778052738000,-500.0,0.00024657,2]
[421713652,1778052738000,-500.0,0.00024657,2]
[421713655,1778052738000,-500.0,0.00024657,2]
[421713653,1778052738000,-500.0,0.00024657,2]
[421713651,1778052738000,-500.0,0.00024657,2]
[421713654,1778052738000,-500.0,0.00024657,2]
[421713644,1778052738000,-500.0,0.00024657,2]
[421713627,1778052738000,-259.9,0.0002411,2]
[421713595,1778052738000,-1000.0,0.00023529,2]
[421713628,1778052738000,-29425.71,0.00024174,2]
[421713630,1778052738000,-12649.0,0.00024252,2]
[421713605,1778052738000,-177.0,0.00024,2]
[421713604,1778052738000,-497.0,0.00024,2]
[421713607,1778052738000,-494.0,0.00024,2]
[421713611,1778052738000,-1035.52786894,0.00024,2]
[421713613,1778052738000,-500.0,0.00024,2]
[421713612,1778052738000,-195.0,0.00024,2]
[421713606,1778052738000,-385.0,0.00024,2]
[421713610,1778052738000,-480.0,0.00024,2]
[421713609,1778052738000,-360.0,0.00024,2]
[421713615,1778052738000,-1443.0,0.00024,2]
[421713625,1778052738000,-1500.0,0.00024077,2]
[421713608,1778052738000,-1176.0,0.00024,2]
[421713618,1778052738000,-500.0,0.00024013,2]
[421713614,1778052738000,-162.0,0.00024,2]
[421713626,1778052738000,-501.50869273,0.00024077,2]
[421713622,1778052738000,-1500.0,0.00024077,2]
[421713624,1778052738000,-1500.0,0.00024077,2]
[421713621,1778052738000,-1500.0,0.00024077,2]
[421713629,1778052738000,-492.11,0.00024174,2]
[421713620,1778052738000,-1500.0,0.00024077,2]
[421713619,1778052738000,-1118.34160976,0.00024014,2]
[421713616,1778052738000,-3600.0,0.00024,2]
[421713617,1778052738000,-1252.07895434,0.00024,2]
[421713623,1778052738000,-431.73147682,0.00024077,2]
[421713696,1778052739000,-350.0,0.00025753,2]
[421713690,1778052739000,-246.71,0.00025523,2]
[421713691,1778052739000,-1118.34160976,0.00025652,2]
[421713694,1778052739000,-155.96123709,0.00025722,21]
[421713693,1778052739000,-3000.0,0.00025721,2]
[421713687,1778052739000,-246.71,0.00025234,30]
[421713689,1778052739000,-550.0,0.00025508,2]
[421713688,1778052739000,-200.0,0.0002535,2]
[421713686,1778052739000,-250.0,0.00025205,2]
[421713699,1778052739000,-451.0,0.00025781,2]
[421713692,1778052739000,-3000.0,0.00025721,2]
[421713700,1778052739000,-451.0,0.00025781,2]
[421713707,1778052739000,-451.0,0.00025781,2]
[421713698,1778052739000,-451.0,0.00025781,2]
[421713703,1778052739000,-451.0,0.00025781,2]
[421713701,1778052739000,-451.0,0.00025781,2]
[421713706,1778052739000,-451.0,0.00025781,2]
[421713704,1778052739000,-451.0,0.00025781,2]
[421713705,1778052739000,-451.0,0.00025781,2]
[421713702,1778052739000,-451.0,0.00025781,2]
[421713708,1778052739000,-451.0,0.00025781,2]
[421713711,1778052739000,-451.0,0.00025781,2]
[421713713,1778052739000,-451.0,0.00025781,2]
[421713714,1778052739000,-451.0,0.00025781,2]
[421713695,1778052739000,-150.0,0.00025753,2]
[421713697,1778052739000,-450.0,0.00025767,2]
[421713685,1778052739000,-2500.0,0.00025173,2]
[421713669,1778052739000,-1195.61790507,0.00025,2]
[421713683,1778052739000,-309.24927612,0.00025173,2]
[421713661,1778052739000,-2000.0,0.00024805,2]
[421713657,1778052739000,-150.0,0.00024658,2]
[421713658,1778052739000,-1000.0,0.00024658,2]
[421713659,1778052739000,-150.0,0.00024658,2]
[421713660,1778052739000,-246.71,0.00024658,2]
[421713663,1778052739000,-246.71,0.00024946,7]
[421713671,1778052739000,-496.88288883,0.00025,2]
[421713672,1778052739000,-1126.5992081,0.00025,2]
[421713662,1778052739000,-157.34,0.00024837,2]
[421713667,1778052739000,-386.46179971,0.00025,2]
[421713664,1778052739000,-450.0,0.00024961,2]
[421713668,1778052739000,-504.25442395,0.00025,2]
[421713665,1778052739000,-500.43715,0.00025,2]
[421713666,1778052739000,-185.28566167,0.00025,2]
[421713712,1778052739000,-451.0,0.00025781,2]
[421713674,1778052739000,-580.17466559,0.00025,60]
[421713673,1778052739000,-209.86649147,0.00025,2]
[421713675,1778052739000,-1805.18416492,0.00025,2]
[421713679,1778052739000,-2000.0,0.00025,2]
[421713678,1778052739000,-1443.40363017,0.00025,2]
[421713682,1778052739000,-3078.04110754,0.00025,2]
[421713677,1778052739000,-166.0,0.00025,2]
[421713680,1778052739000,-540.0,0.00025,2]
[421713681,1778052739000,-617.75203949,0.00025,2]
[421713676,1778052739000,-201.60616868,0.00025,2]
[421713684,1778052739000,-2500.0,0.00025173,2]
[421713710,1778052739000,-451.0,0.00025781,2]
[421713670,1778052739000,-365.81483075,0.00025,2]
[421713715,1778052739000,-451.0,0.00025781,2]
[421713749,1778052739000,-185.64,0.00026027,7]
[421713746,1778052739000,-4573.71407849,0.00026,2]
[421713740,1778052739000,-3017.82,0.00025786,2]
[421713745,1778052739000,-31157.8661112,0.0002589,5]
[421713747,1778052739000,-550.0,0.00026,2]
[421713748,1778052739000,-157.34,0.0002602,2]
[421713752,1778052739000,-246.71,0.00026099,30]
[421713753,1778052739000,-200.0,0.00026201,2]
[421713762,1778052739000,-453.0,0.00026329,2]
[421713764,1778052739000,-453.0,0.00026329,2]
[421713763,1778052739000,-453.0,0.00026329,2]
[421713754,1778052739000,-2856.57211453,0.00026269,2]
[421713760,1778052739000,-453.0,0.00026329,2]
[421713756,1778052739000,-2842.0,0.00026296,2]
[421713757,1778052739000,-254.44,0.000263,14]
[421713758,1778052739000,-450.0,0.00026301,2]
[421713755,1778052739000,-3500.0,0.00026269,2]
[421713761,1778052739000,-453.0,0.00026329,2]
[421713766,1778052739000,-453.0,0.00026329,2]
[421713767,1778052739000,-453.0,0.00026329,2]
[421713765,1778052739000,-453.0,0.00026329,2]
[421713768,1778052739000,-453.0,0.00026329,2]
[421713770,1778052739000,-453.0,0.00026329,2]
[421713769,1778052739000,-453.0,0.00026329,2]
[421713709,1778052739000,-451.0,0.00025781,2]
[421713741,1778052739000,-29425.71,0.00025786,2]
[421713744,1778052739000,-310.0,0.00025842,7]
[421713759,1778052739000,-500.0,0.00026328,2]
[421713751,1778052739000,-401.94273924,0.00026056,2]
[421713717,1778052739000,-451.0,0.00025781,2]
[421713743,1778052739000,-246.71,0.00025811,7]
[421713716,1778052739000,-451.0,0.00025781,2]
[421713719,1778052739000,-451.0,0.00025781,2]
[421713728,1778052739000,-477.0,0.00025781,2]
[421713725,1778052739000,-451.0,0.00025781,2]
[421713726,1778052739000,-477.0,0.00025781,2]
[421713720,1778052739000,-451.0,0.00025781,2]
[421713718,1778052739000,-451.0,0.00025781,2]
[421713721,1778052739000,-451.0,0.00025781,2]
[421713724,1778052739000,-451.0,0.00025781,2]
[421713723,1778052739000,-451.0,0.00025781,2]
[421713727,1778052739000,-477.0,0.00025781,2]
[421713722,1778052739000,-451.0,0.00025781,2]
[421713734,1778052739000,-477.0,0.00025781,2]
[421713742,1778052739000,-492.11,0.00025786,2]
[421713731,1778052739000,-477.0,0.00025781,2]
[421713733,1778052739000,-477.0,0.00025781,2]
[421713750,1778052739000,-1000.0,0.00026027,35]
[421713737,1778052739000,-477.0,0.00025781,2]
[421713735,1778052739000,-477.0,0.00025781,2]
[421713736,1778052739000,-477.0,0.00025781,2]
[421713739,1778052739000,-477.0,0.00025781,2]
[421713732,1778052739000,-477.0,0.00025781,2]
[421713729,1778052739000,-477.0,0.00025781,2]
[421713738,1778052739000,-477.0,0.00025781,2]
[421713730,1778052739000,-477.0,0.00025781,2]
[421713788,1778052740000,-453.0,0.00026329,2]
[421713792,1778052740000,-453.0,0.00026329,2]
[421713793,1778052740000,-453.0,0.00026329,2]
[421713791,1778052740000,-453.0,0.00026329,2]
[421713786,1778052740000,-453.0,0.00026329,2]
[421713802,1778052740000,-453.0,0.00026329,2]
[421713803,1778052740000,-453.0,0.00026329,2]
[421713794,1778052740000,-453.0,0.00026329,2]
[421713800,1778052740000,-453.0,0.00026329,2]
[421713799,1778052740000,-453.0,0.00026329,2]
[421713795,1778052740000,-453.0,0.00026329,2]
[421713801,1778052740000,-453.0,0.00026329,2]
[421713784,1778052740000,-453.0,0.00026329,2]
[421713796,1778052740000,-453.0,0.00026329,2]
[421713787,1778052740000,-453.0,0.00026329,2]
[421713772,1778052740000,-453.0,0.00026329,2]
[421713783,1778052740000,-453.0,0.00026329,2]
[421713777,1778052740000,-453.0,0.00026329,2]
[421713798,1778052740000,-453.0,0.00026329,2]
[421713776,1778052740000,-453.0,0.00026329,2]
[421713775,1778052740000,-453.0,0.00026329,2]
[421713774,1778052740000,-453.0,0.00026329,2]
[421713773,1778052740000,-453.0,0.00026329,2]
[421713785,1778052740000,-453.0,0.00026329,2]
[421713771,1778052740000,-453.0,0.00026329,2]
[421713778,1778052740000,-453.0,0.00026329,2]
[421713790,1778052740000,-453.0,0.00026329,2]
[421713789,1778052740000,-453.0,0.00026329,2]
[421713780,1778052740000,-453.0,0.00026329,2]
[421713781,1778052740000,-453.0,0.00026329,2]
[421713782,1778052740000,-453.0,0.00026329,2]
[421713779,1778052740000,-453.0,0.00026329,2]
[421713805,1778052740000,-453.0,0.00026329,2]
[421713797,1778052740000,-453.0,0.00026329,2]
[421713816,1778052740000,-150.0,0.00026849,2]
[421713827,1778052740000,-716.52947102,0.000273,30]
[421713822,1778052740000,-314.75,0.00027253,2]
[421713829,1778052740000,-500.0,0.00027301,2]
[421713826,1778052740000,-716.52947103,0.000273,30]
[421713830,1778052740000,-500.0,0.00027301,2]
[421713831,1778052740000,-500.0,0.00027301,2]
[421713825,1778052740000,-219.09451658,0.00027292,2]
[421713832,1778052740000,-500.0,0.00027301,2]
[421713837,1778052740000,-566021.05323693,0.00027302,2]
[421713835,1778052740000,-290389.8799966,0.00027302,2]
[421713834,1778052740000,-500.0,0.00027301,2]
[421713838,1778052740000,-3453.88397609,0.00027302,2]
[421713839,1778052740000,-343.10411232,0.00012941,2]
[421713815,1778052740000,-680.45515395,0.00026817,2]
[421713833,1778052740000,-500.0,0.00027301,2]
[421713823,1778052740000,-246.71,0.00027253,2]
[421713836,1778052740000,-11844.3598608,0.00027302,2]
[421713821,1778052740000,-157.34,0.00027202,2]
[421713804,1778052740000,-453.0,0.00026329,2]
[421713824,1778052740000,-1118.34160976,0.0002729,2]
[421713806,1778052740000,-453.0,0.00026329,2]
[421713814,1778052740000,-621.0,0.00026677,2]
[421713813,1778052740000,-246.71,0.00026676,7]
[421713810,1778052740000,-500.0,0.00026463,2]
[421713807,1778052740000,-246.71,0.00026388,2]
[421713812,1778052740000,-500.0,0.00026592,2]
[421713809,1778052740000,-164.22619886,0.00026463,2]
[421713811,1778052740000,-500.0,0.00026592,2]
[421713817,1778052740000,-550.0,0.00026849,2]
[421713818,1778052740000,-246.71,0.00026964,30]
[421713819,1778052740000,-200.0,0.00027052,2]
[421713820,1778052740000,-501.0,0.00027137,2]
[421713828,1778052740000,-500.0,0.00027301,2]
[421713808,1778052740000,-211.89209251,0.00026463,2]
[421713843,1778052741000,-1141.95986912,0.00027302,2]
[421713841,1778052741000,-103859.67273896,0.00027302,2]
[421713842,1778052741000,-712.23969393,0.00027302,2]
[421713840,1778052741000,-16806.89604784,0.00012941,2]
[421713844,1778052741000,-522.62702627,0.00027302,2]
[421713851,1778052741000,-761.25738331,0.00027302,2]
[421713847,1778052741000,-982.07925712,0.00027302,2]
[421713846,1778052741000,-2300.18457912,0.00027302,2]
[421713848,1778052741000,-1881.4831724,0.00013903,2]
[421713850,1778052741000,-54840.60701472,0.00027302,2]
[421713849,1778052741000,-15268.51698776,0.00013903,2]
[421713845,1778052741000,-1220.52685329,0.00027302,2]
[421713852,1778052742000,-625.54012998,0.00027302,2]
[421713854,1778052744000,-500.0,0.00011999,2]
[421713856,1778052744000,-500.0,0.00011999,2]
[421713855,1778052744000,-500.0,0.00011999,2]
[421713853,1778052744000,-500.0,0.00011999,2]
[421713858,1778052744000,153.655,0.00011979,2]
[421713859,1778052744000,205.34582142,0.00011979,2]
[421713860,1778052744000,-928.8255748,0.00011999,2]
[421713857,1778052744000,-531.30046784,0.00011999,2]
[421713861,1778052745000,-928.8255748,0.00011999,2]
[421713862,1778052745000,-928.8255748,0.00011999,2]
[421713863,1778052745000,-928.8255748,0.00011999,2]
[421713865,1778052745000,-928.8255748,0.00011999,2]
[421713864,1778052745000,-928.8255748,0.00011999,2]
[421713870,1778052745000,-711.754252,0.00011999,2]
[421713866,1778052745000,-928.8255748,0.00011999,2]
[421713867,1778052745000,-928.8255748,0.00011999,2]
[421713868,1778052745000,-928.8255748,0.00011999,2]
[421713869,1778052745000,-928.8255748,0.00011999,2]
[421713875,1778052745000,-928.8255748,0.00011999,2]
[421713872,1778052745000,-928.8255748,0.00011999,2]
[421713874,1778052745000,-928.8255748,0.00011999,2]
[421713876,1778052745000,-928.8255748,0.00011999,2]
[421713873,1778052745000,-928.8255748,0.00011999,2]
[421713877,1778052745000,-928.8255748,0.00011999,2]
[421713878,1778052745000,-928.8255748,0.00011999,2]
[421713879,1778052745000,-928.8255748,0.00011999,2]
[421713881,1778052745000,-928.8255748,0.00011999,2]
[421713880,1778052745000,-928.8255748,0.00011999,2]
[421713882,1778052745000,-494.6829292,0.00011999,2]
[421713871,1778052745000,-217.0713228,0.00011999,2]
[421713883,1778052746000,1884.86,0.00011733,2]
[421713884,1778052746000,-434.1426456,0.00011999,2]
[421713890,1778052746000,-928.8255748,0.00011999,2]
[421713891,1778052746000,-928.8255748,0.00011999,2]
[421713889,1778052746000,-928.8255748,0.00011999,2]
[421713895,1778052746000,-277.6116064,0.00011999,2]
[421713885,1778052746000,-928.8255748,0.00011999,2]
[421713892,1778052746000,-928.8255748,0.00011999,2]
[421713894,1778052746000,-928.8255748,0.00011999,2]
[421713888,1778052746000,-928.8255748,0.00011999,2]
[421713886,1778052746000,-928.8255748,0.00011999,2]
[421713893,1778052746000,-928.8255748,0.00011999,2]
[421713887,1778052746000,-928.8255748,0.00011999,2]
[421713896,1778052869000,-500.0,0.00011714,2]
[421713897,1778052869000,-151.2139684,0.00011999,2]
[421713898,1778052870000,173.04,7.504e-05,2]
[421713900,1778052881000,-326.96,0.00011999,2]
[421713899,1778052881000,-173.04,0.00011256,2]
[421713902,1778052882000,-326.96,0.00011999,2]
[421713901,1778052882000,-173.04,0.00011999,2]
[421713906,1778052883000,-50.0,0.00012346,2]
[421713905,1778052883000,-150.0,0.00011998,2]
[421713903,1778052883000,-500.0,0.00012346,2]
[421713904,1778052883000,-300.0,0.00011998,2]
[421713909,1778052884000,-500.0,0.00012346,2]
[421713908,1778052884000,-500.0,0.00012346,2]
[421713907,1778052884000,-500.0,0.00012346,2]
[421713910,1778052885000,-500.0,0.00011998,2]
[421713911,1778052962000,-500.0,0.00011998,2]
[421713912,1778052963000,-500.0,0.00011998,2]
[421713913,1778053062000,-163.24234423,0.000119,2]
[421713914,1778053063000,-1836.75765577,0.000119,2]
[421713915,1778053063000,-570.34550988,0.00011998,2]
[421713916,1778053064000,-836.75765577,0.00011998,2]
[421713927,1778053065000,-567.00807027,0.00012345,2]
[421713928,1778053065000,-567.00807027,0.00012345,2]
[421713926,1778053065000,-567.00807027,0.00012345,2]
[421713925,1778053065000,-567.00807027,0.00012345,2]
[421713923,1778053065000,-567.00807027,0.00012345,2]
[421713922,1778053065000,-567.00807027,0.00012345,2]
[421713929,1778053065000,-567.00807027,0.00012345,2]
[421713920,1778053065000,-567.00807027,0.00012345,2]
[421713919,1778053065000,-567.00807027,0.00012345,2]
[421713918,1778053065000,-567.00807027,0.00012345,2]
[421713917,1778053065000,-1200.0,0.00012344,2]
[421713921,1778053065000,-567.00807027,0.00012345,2]
[421713931,1778053065000,-567.00807027,0.00012345,2]
[421713924,1778053065000,-567.00807027,0.00012345,2]
[421713932,1778053065000,-567.00807027,0.00012345,2]
[421713933,1778053065000,-567.00807027,0.00012345,2]
[421713934,1778053065000,-567.00807027,0.00012345,2]
[421713935,1778053065000,-567.00807027,0.00012345,2]
[421713936,1778053065000,-567.00807027,0.00012345,2]
[421713938,1778053065000,-567.00807027,0.00012345,2]
[421713937,1778053065000,-567.00807027,0.00012345,2]
[421713945,1778053065000,-567.00807027,0.00012345,2]
[421713939,1778053065000,-567.00807027,0.00012345,2]
[421713940,1778053065000,-567.00807027,0.00012345,2]
[421713941,1778053065000,-567.00807027,0.00012345,2]
[421713942,1778053065000,-567.00807027,0.00012345,2]
[421713943,1778053065000,-567.00807027,0.00012345,2]
[421713944,1778053065000,-567.00807027,0.00012345,2]
[421713930,1778053065000,-567.00807027,0.00012345,2]
[421713946,1778053066000,-567.00807027,0.00012345,2]
[421713947,1778053066000,-567.00807027,0.00012345,2]
[421713949,1778053066000,-227.74982163,0.00012345,2]
[421713948,1778053066000,-567.00807027,0.00012345,2]
[421713950,1778053088000,1628.947064,0.0002499,120]
[421713951,1778053121000,21574.239504,0.0002499,120]
[421713952,1778053122000,13602.651103,0.0002499,120]
[421713953,1778053122000,-173.6559903,0.00012246,2]
[421713954,1778053122000,-173.65599028,0.00012313,2]
[421713956,1778053122000,-150.0,0.00012344,2]
[421713955,1778053122000,-300.0,0.00012344,2]
[421713958,1778053122000,-270.53293643,0.00012345,2]
[421713959,1778053122000,-296.47513384,0.00012345,2]
[421713961,1778053122000,-543.61996154,0.00012345,2]
[421713960,1778053122000,-567.00807027,0.00012345,2]
[421713957,1778053122000,-339.25824864,0.00012345,2]
[421713962,1778053123000,-23.38810873,0.00012345,2]
[421713963,1778053123000,-567.00807027,0.00012345,2]
[421713964,1778053123000,-567.00807027,0.00012345,2]
[421713968,1778053123000,-522.78594149,0.00012345,2]
[421713967,1778053123000,-567.00807027,0.00012345,2]
[421713965,1778053123000,-249.69891638,0.00012345,2]
[421713966,1778053123000,-317.30915389,0.00012345,2]
[421713970,1778053124000,-1407.10316565,0.000119,2]
[421713969,1778053124000,-1407.10316565,0.00012012,2]